bitfinex/quotes_BTCUSD_20240730
["timestamp","ask_amount","ask_price","bid_price","bid_amount"]
[1722378155741,0.12863069,66349.0,66348.0,0.012]
[1722378156182,0.13908665,66349.0,66348.0,0.012]
[1722378157321,0.02605617,66349.0,66348.0,0.012]
[1722378158110,0.02605617,66349.0,66348.0,0.9073]
[1722378158326,0.01245596,66349.0,66348.0,0.60586]
[1722378158526,0.02595224,66349.0,66348.0,0.60586]
[1722378158737,0.13899637,66349.0,66348.0,0.60586]
[1722378158954,0.13951005,66349.0,66348.0,0.9073]
[1722378159391,0.12854188,66349.0,66348.0,0.9073]
[1722378159598,0.13965579,66349.0,66348.0,0.9073]
[1722378161061,0.01549628,66349.0,66348.0,0.9073]
[1722378161354,0.12618406,66349.0,66348.0,0.9073]
[1722378161784,0.12618406,66349.0,66348.0,1.20874]
[1722378161785,0.01547727,66349.0,66348.0,1.20874]
[1722378162231,0.002,66349.0,66348.0,1.20874]
[1722378162830,0.001,66349.0,66348.0,1.19674]
[1722378162961,0.002,66349.0,66348.0,1.20874]
[1722378163363,0.001,66349.0,66348.0,1.54039]
[1722378163779,0.002,66349.0,66348.0,1.66767392]
[1722378164305,0.001,66349.0,66348.0,1.54039]
[1722378164509,0.002,66349.0,66348.0,1.54239]
[1722378164671,0.002,66349.0,66348.0,1.67767319]
[1722378164871,0.002,66349.0,66348.0,1.77767319]
[1722378165071,0.001,66349.0,66348.0,1.76567319]
[1722378165523,0.001,66349.0,66348.0,1.76567011]
[1722378165723,0.001,66349.0,66348.0,1.77967011]
[1722378165898,0.001,66349.0,66348.0,1.77567011]
[1722378166678,0.00067,66351.0,66348.0,1.77567011]
[1722378166679,0.00067,66351.0,66350.0,1.227018]
[1722378166889,1.39277702,66365.0,66362.0,0.443177]
[1722378166890,0.09038162,66364.0,66362.0,0.443177]
[1722378167096,1.2798,66365.0,66364.0,0.150684]
[1722378167322,0.09038162,66367.0,66365.0,0.150681]
[1722378167529,0.09038162,66367.0,66366.0,0.452038]
[1722378168169,0.09038162,66367.0,66366.0,0.150679]
[1722378168578,0.09138162,66367.0,66366.0,0.150679]
[1722378168785,0.09134271,66367.0,66366.0,0.150679]
[1722378168993,0.001,66367.0,66366.0,0.150679]
[1722378169211,0.09134271,66367.0,66366.0,0.150679]
[1722378169417,0.09134271,66367.0,66366.0,0.158679]
[1722378169548,0.09134271,66367.0,66366.0,0.150679]
[1722378169750,0.09034271,66367.0,66366.0,0.158679]
[1722378170163,0.09134271,66367.0,66366.0,0.160679]
[1722378170348,0.09134271,66367.0,66366.0,0.540738]
[1722378170557,0.09034271,66368.0,66367.0,0.452031]
[1722378170755,0.09034271,66371.0,66370.0,0.45201]
[1722378171020,0.09034271,66373.0,66372.0,0.451996]
[1722378171222,0.09034271,66374.0,66373.0,0.301327]
[1722378171451,0.09034271,66376.0,66374.0,0.15066]
[1722378171862,0.09034271,66376.0,66374.0,0.14966]
[1722378172072,0.09034271,66376.0,66371.0,0.301333]
[1722378172284,0.09034271,66376.0,66372.0,0.150665]
[1722378172285,0.24094479,66376.0,66372.0,0.150665]
[1722378172482,0.24094479,66376.0,66373.0,0.005]
[1722378172707,0.24092605,66376.0,66373.0,0.005]
[1722378172890,0.09026905,66374.0,66373.0,0.005]
[1722378173330,0.24092805,66375.0,66373.0,0.005]
[1722378173540,0.24092805,66375.0,66373.0,0.004]
[1722378173955,0.09026905,66374.0,66373.0,0.004]
[1722378174402,0.24092805,66375.0,66373.0,0.004]
[1722378174625,0.54225205,66374.0,66373.0,0.004]
[1722378174832,0.90550152,66374.0,66373.0,0.004]
[1722378175039,0.90550152,66374.0,66359.0,0.1372]
[1722378175040,0.301335,66372.0,66359.0,0.438589]
[1722378175253,0.24092747,66370.0,66365.0,0.150681]
[1722378175475,0.00100003,66369.0,66366.0,0.150679]
[1722378175674,0.00100003,66369.0,66365.0,0.150681]
[1722378175675,0.16540026,66369.0,66365.0,0.150681]
[1722378176124,0.25565424,66369.0,66365.0,0.150681]
[1722378176561,0.25465421,66369.0,66365.0,0.157681]
[1722378177750,0.25565421,66369.0,66365.0,0.162681]
[1722378177951,0.25565421,66369.0,66365.0,0.155681]
[1722378178177,0.25565421,66369.0,66365.0,0.005]
[1722378178377,0.16640026,66369.0,66365.0,0.163681]
[1722378178771,0.16640026,66369.0,66365.0,0.013]
[1722378178972,0.150675,66368.0,66365.0,0.013]
[1722378179402,0.01366746,66367.0,66365.0,0.013]
[1722378179755,0.01366746,66367.0,66365.0,0.163681]
[1722378179955,0.15267303,66369.0,66365.0,0.163681]
[1722378180068,0.01366114,66366.0,66365.0,0.158681]
[1722378180268,0.150666,66372.0,66365.0,0.008]
[1722378180468,0.366191,66381.0,66372.0,0.30033]
[1722378180718,0.15066,66375.0,66371.0,0.150666]
[1722378181029,0.150657,66376.0,66371.0,0.150667]
[1722378181438,0.150657,66376.0,66372.0,0.150665]
[1722378182390,0.150657,66376.0,66371.0,0.150667]
[1722378182591,0.150657,66376.0,66372.0,0.002]
[1722378183247,0.150539,66375.0,66372.0,0.002]
[1722378183416,0.150657,66376.0,66372.0,0.152665]
[1722378183630,0.150657,66376.0,66372.0,0.002]
[1722378184067,0.13538347,66377.0,66372.0,0.306331]
[1722378184401,0.13538347,66377.0,66375.0,0.0655]
[1722378184572,0.13538347,66377.0,66376.0,0.150656]
[1722378184952,0.00083,66380.0,66378.0,0.150651]
[1722378185516,0.00083,66380.0,66379.0,0.15065]
[1722378185716,0.00083,66380.0,66379.0,0.45195]
[1722378186982,0.00083,66380.0,66379.0,0.15065]
[1722378187182,0.00183,66380.0,66379.0,0.16465]
[1722378187415,0.00183,66380.0,66379.0,0.24215]
[1722378187565,0.00083,66380.0,66379.0,0.23515]
[1722378187768,0.00083,66380.0,66379.0,0.24515]
[1722378187974,0.00183,66380.0,66379.0,0.24515]
[1722378188526,0.00183,66380.0,66379.0,0.53945]
[1722378188727,0.00183,66380.0,66379.0,0.84075]
[1722378188842,0.00183,66380.0,66379.0,0.85075]
[1722378193391,0.00183,66380.0,66379.0,0.91175]
[1722378194093,0.00183,66380.0,66379.0,1.21305]
[1722378196391,0.00183,66380.0,66379.0,0.91175]
[1722378196801,0.00183,66380.0,66379.0,0.85075]
[1722378197004,0.00183,66380.0,66379.0,0.54945]
[1722378197208,0.00183,66380.0,66379.0,0.02]
[1722378197607,0.0155294,66380.0,66379.0,0.17065]
[1722378197826,0.00183,66380.0,66379.0,0.17065]
[1722378197980,0.0155294,66380.0,66379.0,0.17065]
[1722378198180,0.00183,66380.0,66379.0,0.02]
[1722378198543,0.0155294,66380.0,66379.0,0.02]
[1722378198666,0.0155294,66380.0,66379.0,0.17065]
[1722378199071,0.0155294,66380.0,66379.0,0.02]
[1722378199718,0.2455764,66380.0,66379.0,0.02]
[1722378199918,0.6132714,66380.0,66379.0,0.02]
[1722378200121,0.3119764,66380.0,66379.0,0.02]
[1722378201166,0.1613294,66380.0,66379.0,0.02]
[1722378201370,0.0155294,66380.0,66379.0,0.02]
[1722378205255,0.02778086,66380.0,66379.0,0.47195]
[1722378205455,0.02778086,66380.0,66379.0,0.77325]
[1722378205634,0.0155294,66380.0,66379.0,0.77325]
[1722378205834,0.0155294,66380.0,66379.0,1.15435]
[1722378206114,0.0155294,66380.0,66379.0,1.21455]
[1722378206320,0.00183,66380.0,66379.0,1.21455]
[1722378208198,0.00183,66380.0,66379.0,1.51585]
[1722378208412,0.00183,66380.0,66379.0,1.78327607]
[1722378208825,0.00083,66380.0,66379.0,1.76327607]
[1722378209032,0.00183,66380.0,66379.0,1.78327607]
[1722378209443,0.00183,66380.0,66379.0,1.77227607]
[1722378209658,0.00083,66380.0,66379.0,2.27220911]
[1722378209864,0.00083,66380.0,66379.0,2.26720911]
[1722378209865,0.00183,66380.0,66379.0,2.26720911]
[1722378211328,0.00183,66380.0,66379.0,2.28120911]
[1722378211544,0.00183,66380.0,66379.0,2.14199304]
[1722378211743,0.00083,66380.0,66379.0,2.25820182]
[1722378211952,0.00083,66380.0,66379.0,2.27220182]
[1722378212376,0.00083,66380.0,66379.0,2.28620182]
[1722378212588,0.00083,66380.0,66379.0,2.25020182]
[1722378212821,0.00083,66380.0,66379.0,2.28420182]
[1722378213024,0.00083,66380.0,66379.0,2.28620182]
[1722378213462,0.00083,66380.0,66379.0,2.27220182]
[1722378213888,0.00083,66380.0,66379.0,2.28620182]
[1722378215044,0.00083,66380.0,66379.0,2.25820182]
[1722378215481,0.00183,66380.0,66379.0,2.28619948]
[1722378215914,0.0467,66382.0,66381.0,0.032]
[1722378216124,0.0467,66382.0,66381.0,1.94045848]
[1722378216326,0.0467,66382.0,66381.0,2.04045848]
[1722378216733,0.0467,66382.0,66381.0,2.34174948]
[1722378216941,0.01091844,66382.0,66381.0,2.34174948]
[1722378218160,0.00083,66402.0,66401.0,0.753]
[1722378219563,0.00083,66402.0,66401.0,0.765]
[1722378222985,0.898817,66402.0,66401.0,0.012]
[1722378223181,1.200012,66402.0,66401.0,0.012]
[1722378223418,1.36564979,66402.0,66401.0,0.012]
[1722378223755,1.36564979,66402.0,66401.0,0.021]
[1722378224182,1.47833,66402.0,66401.0,0.021]
[1722378224379,1.36564979,66402.0,66401.0,0.021]
[1722378224784,1.3645253,66402.0,66401.0,0.021]
[1722378225009,2.9455203,66402.0,66401.0,0.021]
[1722378225418,2.50405612,66402.0,66401.0,0.021]
[1722378225735,2.20286112,66402.0,66401.0,0.021]
[1722378225966,2.50405612,66402.0,66401.0,0.009]
[1722378226182,0.150621,66392.0,66385.0,0.301272]
[1722378226395,0.297818,66393.0,66388.0,0.150628]
[1722378226610,0.013749,66391.0,66388.0,0.150628]
[1722378226793,0.01375532,66392.0,66389.0,0.150626]
[1722378227047,0.01374268,66390.0,66389.0,0.150626]
[1722378227281,0.301242,66392.0,66385.0,0.301272]
[1722378227497,0.150629,66388.0,66382.0,0.301282]
[1722378227702,0.07616166,66391.0,66387.0,0.150631]
[1722378227925,0.0624,66391.0,66383.0,0.301281]
[1722378228127,0.0624,66391.0,66389.0,0.008]
[1722378228128,0.150626,66390.0,66389.0,0.008]
[1722378228260,0.2407993,66390.0,66389.0,0.021]
[1722378228464,0.32180439,66390.0,66389.0,0.008]
[1722378228879,0.231626,66390.0,66389.0,0.008]
[1722378229089,0.32180439,66390.0,66389.0,0.008]
[1722378229304,0.081,66390.0,66389.0,0.008]
[1722378230222,0.231625,66390.0,66386.0,0.150632]
[1722378230450,0.081,66390.0,66387.0,0.159629]
[1722378230836,0.081,66390.0,66386.0,0.150633]
[1722378230969,0.150627,66389.0,66385.0,0.150635]
[1722378231189,0.231625,66390.0,66385.0,0.150635]
[1722378231403,0.30320822,66391.0,66385.0,0.301272]
[1722378231630,0.24080822,66391.0,66387.0,0.013]
[1722378232075,0.24080822,66391.0,66386.0,0.161633]
[1722378232274,0.24080822,66391.0,66387.0,0.150631]
[1722378232478,0.24080822,66391.0,66386.0,0.161633]
[1722378233383,0.09018622,66391.0,66386.0,0.150633]
[1722378233588,0.150625,66390.0,66386.0,0.150633]
[1722378233795,0.09018622,66390.0,66387.0,0.009]
[1722378233995,0.150623,66391.0,66387.0,0.171631]
[1722378234229,0.150623,66391.0,66387.0,0.150631]
[1722378234634,0.00083,66392.0,66391.0,0.150622]
[1722378235133,0.23150094,66395.0,66393.0,0.15421889]
[1722378235613,0.23150094,66395.0,66393.0,0.00360189]
[1722378235822,0.01028071,66394.0,66393.0,0.00360189]
[1722378236024,0.16089671,66394.0,66393.0,0.00360189]
[1722378236233,0.27364789,66394.0,66393.0,0.00360189]
[1722378236565,0.01028209,66394.0,66393.0,0.00360189]
[1722378237449,0.12303327,66394.0,66393.0,0.01260189]
[1722378238103,0.01039643,66394.0,66393.0,0.01260189]
[1722378238295,0.12316873,66394.0,66393.0,0.01260189]
[1722378238505,0.12316873,66394.0,66393.0,0.01860189]
[1722378238892,0.4046863,66395.0,66393.0,0.01860189]
[1722378239068,0.12318299,66394.0,66393.0,0.01860189]
[1722378239269,0.12318274,66394.0,66393.0,0.01860189]
[1722378239503,0.4046863,66395.0,66393.0,0.01860189]
[1722378239900,0.12312142,66394.0,66393.0,0.01860189]
[1722378240464,0.01034912,66394.0,66393.0,0.01260189]
[1722378240603,0.27373742,66394.0,66393.0,0.00860189]
[1722378240993,0.150616,66394.0,66393.0,0.01560189]
[1722378241188,0.4046933,66395.0,66393.0,0.00360189]
[1722378241566,0.40468858,66395.0,66393.0,0.01260189]
[1722378242156,0.01044571,66394.0,66393.0,0.01860189]
[1722378242386,0.01044614,66394.0,66393.0,0.01860189]
[1722378242558,0.40468858,66395.0,66393.0,0.01860189]
[1722378243003,0.12318075,66394.0,66393.0,0.00960189]
[1722378243219,0.27380525,66394.0,66393.0,0.00960189]
[1722378243435,0.27380525,66394.0,66393.0,0.01660189]
[1722378243436,0.57503725,66394.0,66393.0,0.01660189]
[1722378243659,0.57503725,66394.0,66393.0,0.01060189]
[1722378243660,0.16102117,66394.0,66393.0,0.01060189]
[1722378243872,0.16102117,66394.0,66393.0,0.01560189]
[1722378243873,0.27380318,66394.0,66393.0,0.01560189]
[1722378244078,0.57603521,66394.0,66393.0,0.01560189]
[1722378244287,0.57603521,66394.0,66393.0,0.00360189]
[1722378244288,1.0064329,66394.0,66393.0,0.00360189]
[1722378244471,1.3076649,66394.0,66393.0,0.00360189]
[1722378244716,1.3076649,66394.0,66393.0,0.01860189]
[1722378244928,1.6088969,66394.0,66393.0,0.01860189]
[1722378245133,1.65554101,66394.0,66393.0,0.01860189]
[1722378245341,1.75554101,66394.0,66393.0,0.01860189]
[1722378245545,1.75554101,66394.0,66393.0,0.01260189]
[1722378246156,1.75554101,66394.0,66393.0,0.00360189]
[1722378246698,1.75554101,66394.0,66393.0,0.01160189]
[1722378246905,1.75554101,66394.0,66393.0,0.01660189]
[1722378247106,1.75466047,66394.0,66393.0,0.01660189]
[1722378247307,1.65280605,66394.0,66393.0,0.01660189]
[1722378247486,1.65280605,66394.0,66393.0,0.00860189]
[1722378247687,1.65280605,66394.0,66393.0,0.00960189]
[1722378247889,1.595644,66394.0,66393.0,0.00460189]
[1722378248127,1.74633832,66394.0,66393.0,0.00460189]
[1722378248315,1.596644,66394.0,66393.0,0.00560189]
[1722378248985,1.60698789,66394.0,66393.0,0.00560189]
[1722378249156,1.65380788,66394.0,66393.0,0.00560189]
[1722378249518,1.596644,66394.0,66393.0,0.00560189]
[1722378249715,1.295412,66394.0,66393.0,0.00560189]
[1722378250145,1.36524835,66394.0,66393.0,0.00460189]
[1722378250325,1.47080976,66394.0,66393.0,0.00460189]
[1722378250525,1.47180976,66394.0,66393.0,0.00460189]
[1722378251071,1.47080976,66394.0,66393.0,0.00460189]
[1722378251407,1.47080976,66394.0,66393.0,0.00560189]
[1722378251408,1.62250408,66394.0,66393.0,0.00560189]
[1722378252014,1.47019957,66394.0,66393.0,0.00560189]
[1722378253567,1.45993633,66394.0,66393.0,0.00560189]
[1722378253762,1.51654779,66394.0,66393.0,0.00560189]
[1722378255755,1.36585347,66394.0,66393.0,0.00560189]
[1722378256417,1.30924201,66394.0,66393.0,0.00560189]
[1722378256614,1.36600742,66394.0,66393.0,0.00560189]
[1722378257394,1.42639942,66394.0,66393.0,0.00560189]
[1722378257576,1.12516742,66394.0,66393.0,0.00560189]
[1722378257773,0.87805083,66394.0,66393.0,0.00560189]
[1722378259485,0.87705083,66394.0,66393.0,0.00360189]
[1722378259986,1.00191661,66394.0,66393.0,0.00460189]
[1722378260165,0.87805083,66394.0,66393.0,0.00460189]
[1722378260754,0.86791001,66394.0,66393.0,0.00460189]
[1722378260934,0.87847183,66394.0,66393.0,0.00460189]
[1722378261134,0.87847183,66394.0,66393.0,0.00360189]
[1722378261135,0.86691001,66394.0,66393.0,0.00360189]
[1722378261364,0.87847221,66394.0,66393.0,0.00360189]
[1722378262138,0.57724021,66394.0,66393.0,0.00360189]
[1722378262790,0.57624021,66394.0,66393.0,0.00360189]
[1722378263224,0.57624021,66394.0,66393.0,0.08470189]
[1722378263225,0.17600821,66394.0,66393.0,0.08470189]
[1722378263421,0.17600821,66394.0,66393.0,0.08570189]
[1722378263619,0.17500821,66394.0,66393.0,0.14780189]
[1722378263846,0.47624021,66394.0,66393.0,0.14780189]
[1722378263967,0.47624021,66394.0,66393.0,0.15180189]
[1722378264340,0.47624021,66394.0,66393.0,0.14780189]
[1722378264555,0.47624021,66394.0,66393.0,0.14680189]
[1722378264764,0.46567801,66394.0,66393.0,0.14980189]
[1722378264918,0.47638136,66394.0,66393.0,0.14980189]
[1722378266137,0.17514936,66394.0,66393.0,0.15280189]
[1722378266371,0.17514936,66394.0,66393.0,0.14980189]
[1722378266556,0.02453336,66394.0,66393.0,0.14980189]
[1722378266789,0.02453336,66394.0,66393.0,0.15480189]
[1722378267404,0.02453336,66394.0,66393.0,0.90789189]
[1722378267595,0.01070335,66394.0,66393.0,0.90789189]
[1722378267802,0.4782,66401.0,66398.0,0.150606]
[1722378267803,0.13553076,66400.0,66398.0,0.150606]
[1722378267997,0.01034636,66399.0,66398.0,0.150606]
[1722378268173,0.14587712,66399.0,66398.0,0.228006]
[1722378268396,0.01034636,66399.0,66398.0,0.228006]
[1722378268637,0.01034549,66399.0,66398.0,0.228006]
[1722378269219,0.1458939,66399.0,66398.0,0.228006]
[1722378269423,0.01034549,66399.0,66398.0,0.228006]
[1722378270658,0.01034549,66399.0,66398.0,0.539219]
[1722378270807,0.01034549,66399.0,66398.0,0.546219]
[1722378271017,0.01034549,66399.0,66398.0,0.1548]
[1722378271018,0.11294209,66399.0,66398.0,0.1548]
[1722378271267,0.11294209,66399.0,66398.0,0.606619]
[1722378271469,0.09033396,66399.0,66398.0,0.907832]
[1722378272032,0.00083,66402.0,66401.0,0.4518]
[1722378272869,0.00083,66402.0,66398.0,0.1498]
[1722378273081,0.00083,66402.0,66399.0,0.150603]
[1722378273312,0.151388,66402.0,66398.0,0.297406]
[1722378273524,0.11288583,66399.0,66398.0,0.297406]
[1722378273726,0.11288583,66399.0,66398.0,0.288406]
[1722378273932,0.11288583,66399.0,66398.0,0.589619]
[1722378274150,0.11288583,66399.0,66398.0,0.604619]
[1722378274358,0.11288583,66400.0,66399.0,0.150604]
[1722378275211,0.11286796,66400.0,66399.0,0.150604]
[1722378275423,0.11286796,66400.0,66398.0,0.457013]
[1722378275424,0.11286796,66400.0,66398.0,0.1558]
[1722378275634,0.00079,66402.0,66398.0,0.1468]
[1722378275862,0.11286111,66399.0,66398.0,0.610619]
[1722378276296,0.11286111,66399.0,66398.0,0.589619]
[1722378277168,0.11286111,66399.0,66398.0,0.601619]
[1722378277383,0.11286111,66400.0,66399.0,0.150604]
[1722378278572,0.11283677,66400.0,66399.0,0.451813]
[1722378278786,0.11283677,66401.0,66400.0,0.451806]
[1722378279202,0.09026534,66401.0,66400.0,0.451806]
[1722378279408,0.00079,66402.0,66399.0,0.312209]
[1722378279409,0.09105534,66402.0,66401.0,0.4518]
[1722378279608,0.09105534,66402.0,66401.0,0.1506]
[1722378279831,0.00079,66402.0,66401.0,0.1506]
[1722378280027,0.00079,66402.0,66400.0,0.161601]
[1722378280243,0.09026534,66401.0,66400.0,0.161601]
[1722378280435,0.10410972,66401.0,66400.0,0.150601]
[1722378280832,0.10410972,66401.0,66400.0,0.451805]
[1722378280975,0.01384438,66401.0,66400.0,0.598805]
[1722378281379,0.00079,66402.0,66401.0,0.4518]
[1722378282726,0.00079,66402.0,66401.0,0.763]
[1722378283595,0.00079,66402.0,66401.0,0.753]
[1722378283829,0.00079,66402.0,66401.0,0.764]
[1722378284341,0.00079,66402.0,66401.0,0.774]
[1722378285357,0.00079,66402.0,66401.0,0.8605]
[1722378285781,0.00079,66402.0,66401.0,0.8495]
[1722378286195,0.00079,66402.0,66401.0,0.8625]
[1722378288984,0.00079,66402.0,66401.0,1.1637]
[1722378290000,0.00079,66402.0,66401.0,1.1407]
[1722378290201,0.00079,66402.0,66401.0,1.1667]
[1722378290618,0.00079,66402.0,66401.0,1.2481]
[1722378290832,0.00079,66402.0,66401.0,1.3125]
[1722378291036,0.00079,66402.0,66401.0,1.6137]
[1722378291242,0.00079,66402.0,66401.0,1.6017]
[1722378291651,0.00079,66402.0,66401.0,1.6147]
[1722378292065,0.00079,66402.0,66401.0,1.6007]
[1722378292484,0.00079,66402.0,66401.0,1.6147]
[1722378292715,0.00079,66402.0,66401.0,1.6007]
[1722378292921,0.00079,66402.0,66401.0,1.6017]
[1722378293326,0.00079,66402.0,66401.0,1.6157]
[1722378293533,0.00079,66402.0,66401.0,1.64591]
[1722378293945,0.00079,66402.0,66401.0,1.63191]
[1722378294189,0.00079,66402.0,66401.0,1.64591]
[1722378294790,0.00079,66402.0,66401.0,1.63191]
[1722378295152,0.00079,66402.0,66401.0,1.61791]
[1722378295521,0.00079,66402.0,66401.0,1.63191]
[1722378296138,0.00079,66402.0,66401.0,1.64591]
[1722378297082,0.00079,66402.0,66401.0,1.55941]
[1722378297291,0.00079,66402.0,66401.0,1.64591]
[1722378300588,0.00079,66402.0,66401.0,1.25821]
[1722378300788,0.00079,66402.0,66401.0,1.34471]
[1722378313353,0.00079,66402.0,66401.0,1.28031]
[1722378314525,0.00079,66402.0,66401.0,1.19891]
[1722378315581,0.214587,66402.0,66401.0,0.028]
[1722378315787,0.894577,66402.0,66401.0,0.028]
[1722378316013,1.03226432,66402.0,66401.0,0.028]
[1722378316237,1.22060288,66402.0,66401.0,0.028]
[1722378316651,0.291416,66394.0,66392.0,0.000913]
[1722378316913,0.39553975,66394.0,66392.0,0.000913]
[1722378317144,0.30523968,66394.0,66392.0,0.000913]
[1722378318209,0.30523968,66394.0,66393.0,0.00356189]
[1722378318480,0.15462368,66394.0,66393.0,0.00356189]
[1722378318707,0.24490714,66394.0,66393.0,0.01756189]
[1722378318922,0.24490714,66394.0,66393.0,0.46941589]
[1722378318923,0.01382368,66394.0,66393.0,0.46941589]
[1722378319126,0.01382368,66394.0,66393.0,0.77065189]
[1722378319343,0.01382368,66394.0,66393.0,0.78465189]
[1722378319563,0.1408,66395.0,66394.0,0.150614]
[1722378319995,0.07699711,66395.0,66394.0,0.451846]
[1722378320169,0.01379711,66395.0,66394.0,0.451846]
[1722378320523,0.01379711,66395.0,66394.0,0.538346]
[1722378320728,0.01379711,66395.0,66394.0,0.839578]
[1722378320934,0.01379711,66395.0,66394.0,0.853578]
[1722378321767,0.01379711,66395.0,66394.0,0.552346]
[1722378322036,0.01379711,66395.0,66394.0,0.014]
[1722378322665,0.01379711,66395.0,66394.0,0.028]
[1722378322868,1.02610972,66395.0,66394.0,0.028]
[1722378323082,1.21449114,66395.0,66394.0,0.028]
[1722378323285,1.36212764,66395.0,66394.0,0.028]
[1722378323401,1.22671294,66395.0,66394.0,0.028]
[1722378323600,1.37735705,66395.0,66394.0,0.028]
[1722378323810,1.37735705,66395.0,66394.0,0.014]
[1722378324017,1.37735705,66395.0,66394.0,0.021]
[1722378324643,0.9244357,66395.0,66393.0,0.00356189]
[1722378324843,0.76625162,66394.0,66393.0,0.00356189]
[1722378325101,0.78001814,66394.0,66393.0,0.00356189]
[1722378325432,0.7595933,66394.0,66393.0,0.00356189]
[1722378325631,0.62428611,66394.0,66393.0,0.00356189]
[1722378326413,0.17243811,66394.0,66393.0,0.00356189]
[1722378326619,0.17243811,66394.0,66393.0,0.46641589]
[1722378326620,0.01376652,66394.0,66393.0,0.46641589]
[1722378327058,0.01376652,66394.0,66393.0,0.16517989]
[1722378327316,0.01376652,66394.0,66393.0,0.17217989]
[1722378327562,0.11272545,66395.0,66394.0,0.150615]
[1722378327789,0.11272545,66396.0,66393.0,0.16517889]
[1722378328016,0.09017342,66394.0,66393.0,0.17417889]
[1722378328255,0.09017342,66394.0,66393.0,0.47541489]
[1722378328464,0.09017342,66394.0,66393.0,0.46641489]
[1722378328636,0.1394,66398.0,66394.0,0.451848]
[1722378328637,0.09017342,66395.0,66394.0,0.451848]
[1722378328900,0.09017342,66395.0,66394.0,0.458848]
[1722378329134,0.09016232,66395.0,66394.0,0.157616]
[1722378329341,0.09016232,66395.0,66394.0,0.007]
[1722378329567,0.09016232,66395.0,66394.0,0.157615]
[1722378329568,0.090154,66395.0,66394.0,0.157615]
[1722378329986,0.090154,66395.0,66394.0,0.017]
[1722378330202,0.150609,66397.0,66394.0,0.01]
[1722378330412,0.09015395,66395.0,66394.0,0.01]
[1722378331214,0.09015395,66395.0,66393.0,0.15509189]
[1722378331535,0.09015395,66395.0,66394.0,0.013]
[1722378331737,0.09015395,66395.0,66394.0,0.005]
[1722378331940,0.09015395,66395.0,66393.0,0.15509189]
[1722378332138,0.09015395,66396.0,66394.0,0.01]
[1722378332802,0.09015395,66396.0,66393.0,0.15509189]
[1722378333008,0.24076595,66396.0,66393.0,0.00447489]
[1722378333214,0.150616,66394.0,66393.0,0.01447489]
[1722378333425,0.54200195,66394.0,66393.0,0.01447489]
[1722378333632,0.83147505,66394.0,66393.0,0.01447489]
[1722378333841,0.93113064,66394.0,66393.0,0.01447489]
[1722378334073,0.90859865,66394.0,66393.0,0.01447489]
[1722378334475,0.90859381,66394.0,66393.0,0.00447489]
[1722378334689,0.30612981,66394.0,66393.0,0.01247489]
[1722378334892,0.517248,66394.0,66393.0,0.01247489]
[1722378335335,0.517248,66394.0,66393.0,0.02347489]
[1722378335677,0.0654,66394.0,66393.0,0.02347489]
[1722378335880,0.09011381,66397.0,66395.0,0.150613]
[1722378336094,0.23511381,66398.0,66395.0,0.150613]
[1722378336514,0.09011381,66398.0,66397.0,0.150609]
[1722378337019,0.09008938,66400.0,66397.0,0.150609]
[1722378337243,0.24069138,66400.0,66397.0,0.150609]
[1722378337637,0.24069138,66400.0,66396.0,0.150611]
[1722378338090,0.24069138,66400.0,66397.0,0.004]
[1722378338498,0.24069138,66400.0,66397.0,0.005]
[1722378338499,0.150606,66398.0,66397.0,0.005]
[1722378338696,0.150606,66398.0,66394.0,0.150614]
[1722378338867,0.150606,66398.0,66396.0,0.004]
[1722378339071,0.150606,66398.0,66396.0,0.011]
[1722378339346,0.150606,66398.0,66396.0,0.004]
[1722378340201,0.150606,66398.0,66394.0,0.150615]
[1722378340462,0.01131348,66397.0,66394.0,0.150615]
[1722378340589,0.01131348,66397.0,66393.0,0.15509189]
[1722378340590,0.16192248,66397.0,66393.0,0.15509189]
[1722378340805,0.150612,66396.0,66393.0,0.00447489]
[1722378341016,0.24072364,66396.0,66393.0,0.00447489]
[1722378341205,0.01130085,66395.0,66393.0,0.00447489]
[1722378341577,0.01130085,66395.0,66394.0,0.015]
[1722378341753,0.02464508,66395.0,66393.0,0.00447489]
[1722378341995,0.01130085,66395.0,66393.0,0.00447489]
[1722378342204,0.01130085,66395.0,66393.0,0.17409289]
[1722378342613,0.01321706,66394.0,66393.0,0.16309289]
[1722378343059,0.0245369,66394.0,66393.0,0.46432889]
[1722378343473,0.0245369,66394.0,66393.0,0.45632889]
[1722378343685,0.02456262,66394.0,66393.0,0.15509289]
[1722378343888,0.02456262,66394.0,66393.0,0.16509289]
[1722378344303,0.02456262,66394.0,66393.0,0.45632889]
[1722378344459,0.01131984,66394.0,66393.0,0.77156489]
[1722378344637,0.01131984,66394.0,66393.0,0.78256489]
[1722378344843,0.09011164,66399.0,66397.0,0.150607]
[1722378345215,0.02422174,66398.0,66396.0,0.15061]
[1722378345425,0.0129903,66397.0,66393.0,0.02947489]
[1722378345627,0.0129903,66397.0,66394.0,0.150615]
[1722378345832,0.01121881,66396.0,66394.0,0.150615]
[1722378346043,0.01121881,66396.0,66395.0,0.45184]
[1722378346454,0.01295557,66396.0,66395.0,0.45184]
[1722378346583,0.01117354,66396.0,66395.0,0.45184]
[1722378347233,0.09016072,66398.0,66397.0,0.008]
[1722378347404,0.10306001,66398.0,66397.0,0.158609]
[1722378347606,0.10306001,66398.0,66397.0,0.150609]
[1722378348471,0.10306001,66398.0,66397.0,0.159609]
[1722378348673,0.10306001,66398.0,66397.0,0.165609]
[1722378349607,0.01289929,66398.0,66397.0,0.165609]
[1722378349811,0.10308769,66398.0,66397.0,0.165609]
[1722378350127,0.150602,66400.0,66397.0,0.165609]
[1722378350327,0.09018848,66398.0,66397.0,0.165609]
[1722378350538,0.01275702,66398.0,66397.0,0.910645]
[1722378350745,0.13528273,66404.0,66397.0,0.910645]
[1722378350746,0.09019732,66403.0,66401.0,0.1506]
[1722378350940,0.01353467,66402.0,66400.0,0.150601]
[1722378351141,0.01274467,66401.0,66398.0,0.150606]
[1722378351371,0.01274467,66401.0,66399.0,0.150603]
[1722378351571,0.01274467,66401.0,66399.0,0.150604]
[1722378351814,0.01274467,66401.0,66397.0,0.0901]